fUST/lending_fUST_20250218
["ID","MTS","AMOUNT","RATE_DAILY","PERIOD"]
[353454512,1739843443402,-983.13,0.00014027,2]
[353454513,1739843443413,-517.52,0.00014027,2]
[353454514,1739843443424,-1996.52,0.00014027,2]
[353454515,1739843443433,-2820.2,0.00014027,2]
[353454516,1739843443443,-511.92,0.00014027,2]
[353454517,1739843443452,-515.48,0.00014027,2]
[353454518,1739843443461,-187.98598276,0.0001404,2]
[353454519,1739843443472,-1596.34,0.00014108,2]
[353454520,1739843443481,-1596.34,0.00014108,2]
[353454521,1739843443491,-1596.34,0.00014108,2]
[353454522,1739843443501,-500.0,0.00014109,2]
[353454523,1739843443510,-500.0,0.00014109,2]
[353454524,1739843443519,-509.55,0.00014109,2]
[353454525,1739843443529,-500.0,0.00014109,2]
[353454526,1739843443539,-535.48,0.00014109,2]
[353454527,1739843443549,-500.0,0.00014109,2]
[353454528,1739843443559,-500.0,0.00014109,2]
[353454529,1739843443568,-500.0,0.00014109,2]
[353454530,1739843443578,-500.0,0.00014109,2]
[353454531,1739843443587,-599.55,0.00014109,2]
[353454532,1739843443599,-500.0,0.00014109,2]
[353454533,1739843443608,-500.0,0.00014109,2]
[353454534,1739843443618,-500.0,0.00014109,2]
[353454535,1739843443627,-500.0,0.00014109,2]
[353454536,1739843443637,-500.0,0.00014109,2]
[353454537,1739843443647,-500.0,0.00014109,2]
[353454538,1739843443657,-500.0,0.00014109,2]
[353454539,1739843443666,-500.0,0.00014109,2]
[353454540,1739843443678,-500.0,0.00014109,2]
[353454541,1739843443689,-583.77999867,0.00014109,2]
[353454542,1739843443699,-500.0,0.00014109,2]
[353454543,1739843443709,-500.0,0.00014109,2]
[353454544,1739843443718,-500.0,0.00014109,2]
[353454545,1739843443728,-500.0,0.00014109,2]
[353454546,1739843443738,-500.0,0.00014109,2]
[353454547,1739843443749,-500.0,0.00014109,2]
[353454548,1739843443759,-500.0,0.00014109,2]
[353454549,1739843443768,-500.0,0.00014109,2]
[353454550,1739843443778,-500.0,0.00014109,2]
[353454551,1739843443787,-2275.24,0.00014109,2]
[353454552,1739843443797,-913.65,0.00014109,2]
[353454553,1739843443806,-595.35,0.00014109,2]
[353454554,1739843443815,-1038.85,0.00014109,2]
[353454555,1739843443825,-992.37,0.00014109,2]
[353454556,1739843443835,-528.46,0.00014109,2]
[353454557,1739843443845,-3851.61,0.00014109,2]
[353454558,1739843443855,-500.0,0.00014109,2]
[353454559,1739843443866,-719.57,0.00014109,2]
[353454560,1739843443882,-500.0,0.00014109,2]
[353454561,1739843443892,-599.11,0.00014109,2]
[353454562,1739843443901,-500.0,0.00014109,2]
[353454563,1739843443911,-1109.15,0.00014109,2]
[353454564,1739843443921,-1165.73,0.00014109,2]
[353454565,1739843443931,-510.25,0.00014109,2]
[353454566,1739843443940,-1705.03,0.00014109,2]
[353454567,1739843443950,-500.0,0.00014109,2]
[353454568,1739843443959,-500.0,0.00014109,2]
[353454569,1739843443969,-500.0,0.00014109,2]
[353454570,1739843444052,-14036.1,0.00014109,2]
[353454571,1739843444071,-500.0,0.00014109,2]
[353454572,1739843444082,-500.0,0.00014109,2]
[353454573,1739843444092,-693.83,0.00014109,2]
[353454574,1739843444103,-1651.14,0.00014109,2]
[353454575,1739843444113,-500.0,0.00014109,2]
[353454576,1739843444122,-500.0,0.00014109,2]
[353454577,1739843444132,-775.69,0.00014109,2]
[353454578,1739843444142,-500.0,0.00014109,2]
[353454579,1739843444152,-767.63,0.00014109,2]
[353454580,1739843444161,-602.8309788,0.00014109,2]
[353454581,1739843444171,-604.58,0.00014109,2]
[353454582,1739843444181,-983.13,0.00014109,2]
[353454583,1739843444191,-517.52,0.00014109,2]
[353454584,1739843444200,-1996.52,0.00014109,2]
[353454585,1739843444210,-2820.2,0.00014109,2]
[353454586,1739843444219,-511.92,0.00014109,2]
[353454587,1739843444229,-515.48,0.00014109,2]
[353454588,1739843444238,-576.7914686,0.00014149,2]
[353454589,1739843444248,-1000.0,0.00014178,2]
[353454590,1739843444258,-1596.34,0.0001419,2]
[353454591,1739843444267,-1596.34,0.0001419,2]
[353454592,1739843444277,-1596.34,0.0001419,2]
[353454593,1739843444287,-1596.34,0.0001419,2]
[353454594,1739843444296,-1596.45137142,0.0001419,2]
[353454595,1739843444306,-500.0,0.00014191,2]
[353454596,1739843444315,-500.0,0.00014191,2]
[353454597,1739843444325,-509.55,0.00014191,2]
[353454598,1739843444335,-500.0,0.00014191,2]
[353454599,1739843444345,-535.48,0.00014191,2]
[353454600,1739843444355,-500.0,0.00014191,2]
[353454601,1739843444364,-500.0,0.00014191,2]
[353454602,1739843444373,-500.0,0.00014191,2]
[353454603,1739843444383,-500.0,0.00014191,2]
[353454604,1739843444392,-599.55,0.00014191,2]
[353454605,1739843444402,-500.0,0.00014191,2]
[353454606,1739843444411,-507.17309192,0.00014191,2]
[353454607,1739843444421,-500.0,0.00014191,2]
[353454608,1739843444430,-211.5844172,0.00014191,2]
[353454609,1739843444440,-505.49042839,0.00014191,2]
[353454610,1739843444450,-500.0,0.00014191,2]
[353454611,1739843444460,-500.0,0.00014191,2]
[353454612,1739843444469,-505.06868119,0.00014191,2]
[353454613,1739843444479,-500.0,0.00014191,2]
[353454614,1739843444489,-500.0,0.00014191,2]
[353454615,1739843444498,-505.83666062,0.00014191,2]
[353454616,1739843444509,-500.0,0.00014191,2]
[353454617,1739843444519,-500.0,0.00014191,2]
[353454618,1739843444528,-500.0,0.00014191,2]
[353454619,1739843444538,-500.0,0.00014191,2]
[353454620,1739843444548,-500.0,0.00014191,2]
[353454621,1739843444557,-500.0,0.00014191,2]
[353454622,1739843444566,-500.0,0.00014191,2]
[353454623,1739843444575,-2275.24,0.00014191,2]
[353454624,1739843444586,-913.65,0.00014191,2]
[353454625,1739843444599,-595.35,0.00014191,2]
[353454626,1739843444609,-1038.85,0.00014191,2]
[353454627,1739843444618,-992.37,0.00014191,2]
[353454628,1739843444628,-528.46,0.00014191,2]
[353454629,1739843444638,-3851.61,0.00014191,2]
[353454630,1739843444647,-500.0,0.00014191,2]
[353454631,1739843444657,-719.57,0.00014191,2]
[353454632,1739843444667,-500.0,0.00014191,2]
[353454633,1739843444678,-599.11,0.00014191,2]
[353454634,1739843444689,-500.0,0.00014191,2]
[353454635,1739843444699,-1109.15,0.00014191,2]
[353454636,1739843444709,-1165.73,0.00014191,2]
[353454637,1739843444719,-510.25,0.00014191,2]
[353454638,1739843444728,-1705.03,0.00014191,2]
[353454639,1739843444738,-253.25034308,0.00014191,2]
[353454640,1739843444748,-500.0,0.00014191,2]
[353454641,1739843444761,-500.0,0.00014191,2]
[353454642,1739843444771,-14036.1,0.00014191,2]
[353454643,1739843444781,-500.0,0.00014191,2]
[353454644,1739843444791,-500.0,0.00014191,2]
[353454645,1739843444801,-693.83,0.00014191,2]
[353454646,1739843444811,-1651.14,0.00014191,2]
[353454647,1739843444821,-500.0,0.00014191,2]
[353454648,1739843444830,-500.0,0.00014191,2]
[353454649,1739843444840,-775.69,0.00014191,2]
[353454650,1739843444850,-500.0,0.00014191,2]
[353454651,1739843444860,-767.63,0.00014191,2]
[353454652,1739843444870,-604.58,0.00014191,2]
[353454653,1739843444880,-983.13,0.00014191,2]
[353454654,1739843444890,-517.52,0.00014191,2]
[353454655,1739843444899,-1996.52,0.00014191,2]
[353454656,1739843444909,-2820.2,0.00014191,2]
[353454657,1739843444919,-511.92,0.00014191,2]
[353454658,1739843444929,-515.48,0.00014191,2]
[353454659,1739843444939,-1000.0,0.00014207,2]
[353454660,1739843444948,-1000.0,0.00014218,2]
[353454661,1739843444958,-271.472012,0.00014246,2]
[353454662,1739843444968,-271.472012,0.00014246,2]
[353454663,1739843444978,-500.0,0.00014273,2]
[353454664,1739843444988,-500.0,0.00014273,2]
[353454665,1739843445006,-509.55,0.00014273,2]
[353454666,1739843445021,-500.0,0.00014273,2]
[353454667,1739843445035,-535.48,0.00014273,2]
[353454668,1739843445048,-500.0,0.00014273,2]
[353454669,1739843445059,-500.0,0.00014273,2]
[353454670,1739843445073,-412.27581264,0.00014273,2]
[353454671,1739843445086,-500.0,0.00014273,2]
[353454672,1739843445100,-599.55,0.00014273,2]
[353454673,1739843445112,-500.0,0.00014273,2]
[353454674,1739843445126,-500.0,0.00014273,2]
[353454675,1739843445139,-156.548172,0.00014273,2]
[353454676,1739843445153,-151.0,0.00014273,2]
[353454677,1739843445168,-500.0,0.00014273,2]
[353454678,1739843445180,-203.26539552,0.00014273,2]
[353454679,1739843445194,-500.0,0.00014273,2]
[353454680,1739843445207,-293.02737572,0.00014273,2]
[353454681,1739843445219,-500.0,0.00014273,2]
[353454682,1739843445232,-500.0,0.00014273,2]
[353454683,1739843445246,-500.0,0.00014273,2]
[353454684,1739843445261,-500.0,0.00014273,2]
[353454685,1739843445274,-500.0,0.00014273,2]
[353454686,1739843445285,-500.0,0.00014273,2]
[353454687,1739843445296,-500.0,0.00014273,2]
[353454688,1739843445309,-2275.24,0.00014273,2]
[353454689,1739843445320,-913.65,0.00014273,2]
[353454690,1739843445333,-595.35,0.00014273,2]
[353454691,1739843445345,-1038.85,0.00014273,2]
[353454692,1739843445359,-992.37,0.00014273,2]
[353454693,1739843445371,-528.46,0.00014273,2]
[353454694,1739843445385,-3851.61,0.00014273,2]
[353454695,1739843445398,-500.0,0.00014273,2]
[353454696,1739843445412,-719.57,0.00014273,2]
[353454697,1739843445425,-500.0,0.00014273,2]
[353454698,1739843445436,-599.11,0.00014273,2]
[353454699,1739843445446,-500.0,0.00014273,2]
[353454700,1739843445457,-1109.15,0.00014273,2]
[353454701,1739843445469,-1165.73,0.00014273,2]
[353454702,1739843445484,-510.25,0.00014273,2]
[353454703,1739843445498,-1705.03,0.00014273,2]
[353454704,1739843445511,-500.0,0.00014273,2]
[353454705,1739843445522,-383.43461363,0.00014273,2]
[353454706,1739843445535,-14036.1,0.00014273,2]
[353454707,1739843445545,-504.74455732,0.00014273,2]
[353454708,1739843445558,-500.0,0.00014273,2]
[353454709,1739843445569,-693.83,0.00014273,2]
[353454710,1739843445580,-1651.14,0.00014273,2]
[353454711,1739843445591,-500.0,0.00014273,2]
[353454712,1739843445606,-500.0,0.00014273,2]
[353454713,1739843445618,-775.69,0.00014273,2]
[353454714,1739843445629,-500.0,0.00014273,2]
[353454715,1739843445641,-767.63,0.00014273,2]
[353454716,1739843445652,-604.58,0.00014273,2]
[353454717,1739843445663,-983.13,0.00014273,2]
[353454718,1739843445676,-517.52,0.00014273,2]
[353454719,1739843445687,-1996.52,0.00014273,2]
[353454720,1739843445698,-2820.2,0.00014273,2]
[353454721,1739843445709,-511.92,0.00014273,2]
[353454722,1739843445720,-515.48,0.00014273,2]
[353454723,1739843445731,-1000.0,0.00014323,2]
[353454724,1739843445741,-1000.0,0.00014327,2]
[353454725,1739843445753,-1000.0,0.00014341,2]
[353454726,1739843445764,-500.0,0.00014356,2]
[353454727,1739843445775,-500.0,0.00014356,2]
[353454728,1739843445786,-509.55,0.00014356,2]
[353454729,1739843445797,-500.0,0.00014356,2]
[353454730,1739843445808,-535.48,0.00014356,2]
[353454731,1739843445819,-500.0,0.00014356,2]
[353454732,1739843445830,-500.0,0.00014356,2]
[353454733,1739843445841,-500.0,0.00014356,2]
[353454734,1739843445852,-599.55,0.00014356,2]
[353454735,1739843445863,-500.0,0.00014356,2]
[353454736,1739843445874,-500.0,0.00014356,2]
[353454737,1739843445886,-500.0,0.00014356,2]
[353454738,1739843445897,-500.0,0.00014356,2]
[353454741,1739843445909,-505.82987098,0.00014356,2]
[353454743,1739843445920,-500.0,0.00014356,2]
[353454744,1739843445932,-500.0,0.00014356,2]
[353454745,1739843445943,-500.0,0.00014356,2]
[353454746,1739843445955,-500.0,0.00014356,2]
[353454747,1739843445966,-500.0,0.00014356,2]
[353454748,1739843445977,-500.0,0.00014356,2]
[353454749,1739843445989,-2275.24,0.00014356,2]
[353454750,1739843446000,-913.65,0.00014356,2]
[353454751,1739843446013,-595.35,0.00014356,2]
[353454752,1739843446024,-1038.85,0.00014356,2]
[353454753,1739843446035,-992.37,0.00014356,2]
[353454754,1739843446046,-528.46,0.00014356,2]
[353454755,1739843446056,-3851.61,0.00014356,2]
[353454756,1739843446065,-500.0,0.00014356,2]
[353454757,1739843446075,-719.57,0.00014356,2]
[353454758,1739843446084,-500.0,0.00014356,2]
[353454759,1739843446094,-599.11,0.00014356,2]
[353454760,1739843446104,-500.0,0.00014356,2]
[353454762,1739843446228,-1109.15,0.00014356,2]
[353454763,1739843446239,-1165.73,0.00014356,2]
[353454764,1739843446248,-510.25,0.00014356,2]
[353454766,1739843446259,-1705.03,0.00014356,2]
[353454768,1739843446268,-500.0,0.00014356,2]
[353454769,1739843446277,-14036.1,0.00014356,2]
[353454771,1739843446286,-500.0,0.00014356,2]
[353454772,1739843446296,-693.83,0.00014356,2]
[353454773,1739843446305,-1651.14,0.00014356,2]
[353454774,1739843446315,-506.55930327,0.00014356,2]
[353454775,1739843446324,-500.0,0.00014356,2]
[353454776,1739843446334,-775.69,0.00014356,2]
[353454777,1739843446343,-500.0,0.00014356,2]
[353454778,1739843446352,-767.63,0.00014356,2]
[353454779,1739843446362,-604.58,0.00014356,2]
[353454780,1739843446371,-983.13,0.00014356,2]
[353454781,1739843446380,-517.52,0.00014356,2]
[353454782,1739843446390,-1996.52,0.00014356,2]
[353454783,1739843446399,-2820.2,0.00014356,2]
[353454784,1739843446408,-511.92,0.00014356,2]
[353454785,1739843446417,-515.48,0.00014356,2]
[353454786,1739843446426,-1000.0,0.00014363,2]
[353454787,1739843446435,-150.0,0.00014368,2]
[353454788,1739843446444,-538.0,0.00014368,2]
[353454789,1739843446454,-1971.0,0.00014368,2]
[353454790,1739843446463,-2289.0,0.00014368,2]
[353454791,1739843446472,-150.0,0.00014368,2]
[353454792,1739843446481,-396.0,0.00014368,2]
[353454793,1739843446491,-295.974,0.00014368,2]
[353454794,1739843446500,-1000.0,0.00014391,2]
[353454795,1739843446511,-187.98598276,0.000144,2]
[353454796,1739843446520,-1000.0,0.00014401,2]
[353454797,1739843446529,-271.472012,0.00014401,2]
[353454798,1739843446539,-271.472012,0.00014401,2]
[353454799,1739843446547,-1000.0,0.0001441,2]
[353454800,1739843446557,-1000.0,0.0001442,2]
[353454801,1739843446566,-1000.0,0.00014436,2]
[353454802,1739843446575,-500.0,0.00014438,2]
[353454803,1739843446584,-500.0,0.00014438,2]
[353454804,1739843446595,-509.55,0.00014438,2]
[353454805,1739843446607,-500.0,0.00014438,2]
[353454806,1739843446616,-535.48,0.00014438,2]
[353454807,1739843446625,-500.0,0.00014438,2]
[353454808,1739843446634,-500.0,0.00014438,2]
[353454809,1739843446643,-500.0,0.00014438,2]
[353454810,1739843446653,-599.55,0.00014438,2]
[353454811,1739843446662,-498.64881491,0.00014438,2]
[353454812,1739843446672,-500.0,0.00014438,2]
[353454813,1739843446681,-500.0,0.00014438,2]
[353454814,1739843446691,-313.61315098,0.00014438,2]
[353454815,1739843446701,-390.81020935,0.00014438,2]
[353454816,1739843446711,-500.0,0.00014438,2]
[353454817,1739843446720,-376.19510979,0.00014438,2]
[353454818,1739843446730,-505.79907755,0.00014438,2]
[353454819,1739843446739,-500.0,0.00014438,2]
[353454820,1739843446748,-500.0,0.00014438,2]
[353454821,1739843446759,-2275.24,0.00014438,2]
[353454822,1739843446769,-913.65,0.00014438,2]
[353454823,1739843446778,-595.35,0.00014438,2]
[353454824,1739843446788,-1038.85,0.00014438,2]
[353454825,1739843446797,-992.37,0.00014438,2]
[353454826,1739843446807,-528.46,0.00014438,2]
[353454827,1739843446816,-3851.61,0.00014438,2]
[353454828,1739843446826,-500.0,0.00014438,2]
[353454829,1739843446835,-719.57,0.00014438,2]
[353454830,1739843446844,-500.0,0.00014438,2]
[353454831,1739843446854,-599.11,0.00014438,2]
[353454832,1739843446863,-500.0,0.00014438,2]
[353454833,1739843446873,-1109.15,0.00014438,2]
[353454834,1739843446882,-1165.73,0.00014438,2]
[353454835,1739843446891,-510.25,0.00014438,2]
[353454836,1739843446901,-1705.03,0.00014438,2]
[353454837,1739843446910,-500.0,0.00014438,2]
[353454838,1739843446919,-14036.1,0.00014438,2]
[353454839,1739843446928,-500.0,0.00014438,2]
[353454840,1739843446937,-693.83,0.00014438,2]
[353454841,1739843446947,-1651.14,0.00014438,2]
[353454842,1739843446957,-500.0,0.00014438,2]
[353454843,1739843446966,-775.69,0.00014438,2]
[353454844,1739843446976,-500.0,0.00014438,2]
[353454845,1739843446985,-767.63,0.00014438,2]
[353454846,1739843446995,-604.58,0.00014438,2]
[353454847,1739843447005,-983.13,0.00014438,2]
[353454848,1739843447014,-517.52,0.00014438,2]
[353454849,1739843447024,-1996.52,0.00014438,2]
[353454850,1739843447034,-2820.2,0.00014438,2]
[353454851,1739843447043,-511.92,0.00014438,2]
[353454852,1739843447053,-515.48,0.00014438,2]
[353454853,1739843447062,-48440.8813873,0.00014499,7]
[353454854,1739843447071,-208977.94076058,0.000145,2]
[353454855,1739843447080,-528466.78221493,0.000145,2]
[353454856,1739843447164,-720.41,0.00013863,2]
[353454857,1739843447174,-720.41,0.00013945,2]
[353454858,1739843447183,-720.41,0.00014027,2]
[353454859,1739843447193,-273.77,0.00014109,2]
[353454860,1739843447205,-446.64,0.00014109,2]
[353454861,1739843447214,-186.13802642,0.00014191,2]
[353454862,1739843447422,-503.02916056,0.00013698,2]
[353454863,1739843447432,-500.0,0.00013698,2]
[353454864,1739843447441,-500.0,0.00013698,2]
[353454865,1739843447451,-500.0,0.00013698,2]
[353454866,1739843447460,-500.0,0.0001378,2]
[353454867,1739843447470,-151.0,0.00014109,2]
[353454868,1739843447479,-534.27197358,0.00014191,2]
[353454869,1739843447489,-720.41,0.00014273,2]
[353454870,1739843447499,-178.022898,0.00014273,2]
[353454871,1739843447510,-720.41,0.00014356,2]
[353454872,1739843447520,-720.41,0.00014438,2]
[353454873,1739843447530,-16375.68596786,0.000145,2]
[353454874,1739843650772,172.453333,0.00019,120]
[353454875,1739843652832,57432.11619944,0.00012,30]
[353454877,1739844332156,-161.88374919,0.00010472,2]
[353454878,1739844332179,-161.88374919,0.00010578,2]
[353454879,1739844332200,-400.0,0.00010685,2]
[353454880,1739844332221,-13.06186258,0.00012169,2]
[353454881,1739844425102,-283.06061942,0.00012169,2]
[353454882,1739844425123,-18.35628282,0.00012564,2]
[353454883,1739844430080,-242.19696443,0.00012564,2]
[353454884,1739844430102,-500.0,0.00012664,2]
[353454885,1739844430124,-151.59903317,0.00013224,4]
[353454886,1739844430147,-17.67027438,0.00013697,2]
[353454887,1739844434080,-482.32972562,0.00013697,2]
[353454888,1739844434102,-500.0,0.00013697,2]
[353454889,1739844434125,-413.02921469,0.00013697,2]
[353454890,1739844434147,-300.0,0.00013697,2]
[353454891,1739844434168,-377.83822364,0.00013698,2]
[353454892,1739844434190,-500.0,0.00013698,2]
[353454893,1739844434211,-509.02063223,0.00013698,2]
[353454894,1739844434232,-502.15224642,0.00013698,2]
[353454895,1739844434253,-500.0,0.00013698,2]
[353454896,1739844434279,-503.62363932,0.00013698,2]
[353454897,1739844434301,-259.91734227,0.00013698,2]
[353454898,1739844434323,-447.18726041,0.00013698,2]
[353454899,1739844434344,-418.31663529,0.00013698,2]
[353454900,1739844445121,-81.68336471,0.00013698,2]
[353454901,1739844445143,-500.0,0.00013698,2]
[353454902,1739844445166,-108.50752155,0.00013698,2]
[353454928,1739844632769,-300.0,0.00012664,2]
[353454930,1739844632781,-200.0,0.00012664,2]
[353454932,1739844632791,-247.06269021,0.0001356,2]
[353454934,1739844632801,-300.0,0.00013697,2]
[353454936,1739844632810,-500.0,0.00013698,2]
[353454938,1739844632821,-161.84548263,0.00013698,2]
[353454940,1739844632830,-399.85607035,0.00013698,2]
[353454970,1739844638759,-100.79516434,0.00013698,2]
[353454971,1739844638769,-467.58518091,0.00013698,2]
[353454972,1739844638778,-501.2139009,0.00013698,2]
[353454973,1739844638789,-501.60801519,0.00013698,2]
[353454974,1739844638799,-500.82276905,0.00013698,2]
[353454975,1739844638812,-501.04253819,0.00013698,2]
[353454976,1739844638821,-502.02144338,0.00013698,2]
[353454977,1739844638831,-500.91933024,0.00013698,2]
[353454978,1739844638840,-502.15569181,0.00013698,2]
[353454979,1739844638850,-502.15218467,0.00013698,2]
[353454980,1739844638861,-500.95248009,0.00013698,2]
[353454981,1739844638871,-501.12354043,0.00013698,2]
[353454982,1739844638880,-500.0,0.00013698,2]
[353454983,1739844638890,-500.99952192,0.00013698,2]
[353454984,1739844638900,-500.0,0.00013698,2]
[353454985,1739844638910,-156.88668928,0.00013698,2]
[353454986,1739844638919,-500.0,0.00013698,2]
[353454987,1739844638929,-500.98062532,0.00013698,2]
[353454988,1739844638939,-507.73519919,0.00013698,2]
[353454989,1739844638948,-500.0,0.00013698,2]
[353454990,1739844638958,-500.0,0.00013698,2]
[353454991,1739844638973,-500.0,0.00013698,2]
[353454992,1739844638984,-500.0,0.00013698,2]
[353454993,1739844638994,-500.0,0.00013698,2]
[353454994,1739844639004,-306.96439529,0.00013698,2]
[353454995,1739844639015,-500.0,0.00013698,2]
[353454996,1739844639025,-500.0,0.00013698,2]
[353454997,1739844639034,-340.64234472,0.00013698,2]
[353454998,1739844639046,-500.0,0.00013698,2]
[353454999,1739844639055,-500.0,0.00013698,2]
[353455000,1739844639065,-500.0,0.00013698,2]
[353455001,1739844639075,-500.0,0.00013698,2]
[353455002,1739844639085,-500.0,0.00013698,2]
[353455003,1739844639095,-501.63212609,0.00013698,2]
[353455004,1739844639105,-502.79521277,0.00013698,2]
[353455005,1739844639114,-500.0,0.00013698,2]
[353455006,1739844639124,-500.0,0.00013698,2]
[353455007,1739844639134,-500.0,0.00013698,2]
[353455008,1739844639144,-500.0,0.00013698,2]
[353455009,1739844639154,-500.0,0.00013698,2]
[353455010,1739844639163,-500.0,0.00013698,2]
[353455011,1739844639173,-500.0,0.00013698,2]
[353455012,1739844639183,-500.0,0.00013698,2]
[353455013,1739844639193,-500.0,0.00013698,2]
[353455014,1739844639203,-500.0,0.00013698,2]
[353455015,1739844639213,-500.0,0.00013698,2]
[353455016,1739844639223,-500.0,0.00013698,2]
[353455017,1739844639233,-500.0,0.00013698,2]
[353455018,1739844639243,-500.0,0.00013698,2]
[353455019,1739844639252,-500.0,0.00013698,2]
[353455020,1739844639262,-500.0,0.00013698,2]
[353455021,1739844639272,-279.41081161,0.00013698,2]
[353455022,1739844639282,-500.0,0.00013698,2]
[353455023,1739844639292,-500.0,0.00013698,2]
[353455024,1739844639302,-500.0,0.00013698,2]
[353455025,1739844639312,-500.0,0.00013698,2]
[353455026,1739844639321,-461.07437101,0.00013698,2]
[353455027,1739844639331,-501.46472008,0.00013698,2]
[353455028,1739844639341,-543.84,0.00013698,2]
[353455029,1739844639351,-500.72729166,0.00013698,2]
[353455030,1739844639361,-674.84,0.00013698,2]
[353455031,1739844639374,-401.02606132,0.00013698,2]
[353455032,1739844639383,-231.13363686,0.00013698,2]
[353455033,1739844639393,-1459.51,0.00013698,2]
[353455034,1739844639402,-502.07703055,0.00013698,2]
[353455035,1739844639411,-500.0,0.00013698,2]
[353455036,1739844639421,-500.0,0.00013698,2]
[353455037,1739844639430,-500.66240578,0.00013698,2]
[353455038,1739844639442,-500.0,0.00013698,2]
[353455039,1739844639451,-500.0,0.00013698,2]
[353455040,1739844639461,-500.0,0.00013698,2]
[353455041,1739844639470,-500.0,0.00013698,2]
[353455042,1739844639480,-503.71238754,0.00013698,2]
[353455043,1739844639490,-500.0,0.00013698,2]
[353455044,1739844639500,-626.06,0.00013698,2]
[353455045,1739844639509,-376.78546511,0.00013698,2]
[353455046,1739844639519,-500.0,0.00013698,2]
[353455047,1739844639529,-501.8143426,0.00013698,2]
[353455048,1739844639539,-500.0,0.00013698,2]
[353455049,1739844639549,-2558.07,0.00013698,2]
[353455050,1739844639559,-500.0,0.00013698,2]
[353455051,1739844639568,-500.0,0.00013698,2]
[353455052,1739844639578,-220.92851526,0.00013698,2]
[353455053,1739844639588,-500.0,0.00013698,2]
[353455054,1739844639597,-500.0,0.00013698,2]
[353455055,1739844639607,-500.0,0.00013698,2]
[353455056,1739844639616,-500.79109012,0.00013698,2]
[353455057,1739844639626,-735.31,0.00013698,2]
[353455058,1739844639635,-501.10697385,0.00013698,2]
[353455059,1739844639645,-500.0,0.00013698,2]
[353455060,1739844639654,-1246.87,0.00013698,2]
[353455061,1739844639663,-500.0,0.00013698,2]
[353455062,1739844639673,-500.0,0.00013698,2]
[353455063,1739844639683,-500.0,0.00013698,2]
[353455064,1739844639692,-9044.36,0.00013698,2]
[353455065,1739844639702,-500.0,0.00013698,2]
[353455066,1739844639711,-500.0,0.00013698,2]
[353455067,1739844639721,-737.11,0.00013698,2]
[353455068,1739844639730,-500.0,0.00013698,2]
[353455069,1739844639740,-500.0,0.00013698,2]
[353455070,1739844639750,-500.0,0.00013698,2]
[353455071,1739844639760,-500.0,0.00013698,2]
[353455072,1739844639770,-500.0,0.00013698,2]
[353455073,1739844639779,-500.0,0.00013698,2]
[353455074,1739844639789,-500.0,0.00013698,2]
[353455075,1739844639799,-500.0,0.00013698,2]
[353455076,1739844639808,-500.0,0.00013698,2]
[353455077,1739844639817,-500.0,0.00013698,2]
[353455078,1739844639827,-503.02718106,0.00013698,2]
[353455079,1739844639838,-500.0,0.00013698,2]